fUST/lending_fUST_20240830
["ID","MTS","AMOUNT","RATE_DAILY","PERIOD"]
[336546261,1724947559224,9215.54084038,0.00025,120]
[336546263,1724947631157,-199.9190828,0.00018054,2]
[336546264,1724947631183,-200.266949,0.00018242,2]
[336546265,1724947631207,-294.993759,0.00018586,2]
[336546266,1724947631233,-154.521687,0.00018586,2]
[336546267,1724947631253,-50.30674581,0.00018904,2]
[336546268,1724947632094,-116.67095119,0.00018904,2]
[336546269,1724947632116,-600.0,0.00019031,2]
[336546270,1724947632139,-600.0,0.00019031,2]
[336546271,1724947632162,-97.62766097,0.00019031,2]
[336546275,1724947773301,1021.06532435,0.00023,60]
[336546301,1724947832426,-502.37233903,0.00019031,2]
[336546302,1724947832436,-600.0,0.00019061,2]
[336546303,1724947832447,-1222.9963952,0.00019078,2]
[336546304,1724947832457,-1979.29140045,0.00019078,2]
[336546305,1724947832466,-357.39147131,0.00019078,2]
[336546406,1724947838690,-1638.45852869,0.00019078,2]
[336546409,1724947838702,-300.0,0.00019099,2]
[336546410,1724947838711,-300.0,0.000191,8]
[336546412,1724947838722,-600.0,0.00019125,2]
[336546414,1724947838732,-593.78,0.00019168,3]
[336546416,1724947838741,-494.82,0.00019168,3]
[336546417,1724947838752,-247.41,0.00019168,3]
[336546418,1724947838762,-742.23,0.00019168,3]
[336546419,1724947838772,-3243.66242427,0.00019168,2]
[336546420,1724947838783,-500.66884536,0.00019173,2]
[336546421,1724947838792,-338.26505814,0.00019177,2]
[336546422,1724947838802,-319.13261321,0.00019177,2]
[336546423,1724947838811,-262.64109941,0.00019177,2]
[336546424,1724947838822,-255.53283011,0.00019177,2]
[336546425,1724947838832,-500.0,0.00019177,2]
[336546426,1724947838842,-174.04694646,0.00019177,2]
[336546427,1724947838851,-198.02040679,0.00019177,2]
[336546428,1724947838861,-221.50381529,0.00019177,2]
[336546429,1724947838871,-500.0,0.00019177,2]
[336546430,1724947838882,-500.0,0.00019177,2]
[336546431,1724947838896,-500.0,0.00019177,2]
[336546432,1724947838919,-500.0,0.00019177,2]
[336546433,1724947838930,-500.0,0.00019177,2]
[336546434,1724947838941,-500.0,0.00019177,2]
[336546435,1724947838950,-500.0,0.00019177,2]
[336546436,1724947838960,-500.0,0.00019177,2]
[336546437,1724947838970,-325.75741278,0.00019177,2]
[336546438,1724947838982,-500.0,0.00019177,2]
[336546439,1724947838995,-500.0,0.00019177,2]
[336546440,1724947839006,-500.0,0.00019177,2]
[336546441,1724947839016,-500.0,0.00019177,2]
[336546442,1724947839026,-500.0,0.00019177,2]
[336546443,1724947839036,-500.0,0.00019177,2]
[336546444,1724947839047,-250.0,0.00019177,2]
[336546445,1724947839059,-151.0,0.00019178,2]
[336546446,1724947839069,-261.917184,0.00019178,2]
[336546447,1724947839080,-461.14744825,0.00019178,2]
[336546448,1724947839090,-500.0,0.00019178,2]
[336546449,1724947839101,-500.0,0.00019178,2]
[336546450,1724947839112,-500.0,0.00019178,2]
[336546451,1724947839123,-500.0,0.00019178,2]
[336546452,1724947839133,-500.0,0.00019178,2]
[336546453,1724947839146,-500.0,0.00019178,2]
[336546454,1724947839155,-500.0,0.00019178,2]
[336546455,1724947839165,-500.0,0.00019178,2]
[336546456,1724947839175,-1143.17,0.00019178,2]
[336546457,1724947839184,-500.0,0.00019178,2]
[336546458,1724947839194,-502.34429093,0.00019178,2]
[336546459,1724947839203,-500.0,0.00019178,2]
[336546460,1724947839213,-500.0,0.00019178,2]
[336546461,1724947839223,-500.0,0.00019178,2]
[336546462,1724947839233,-569.01,0.00019178,2]
[336546463,1724947839243,-445.32612247,0.00019178,2]
[336546464,1724947839252,-500.0,0.00019178,2]
[336546465,1724947839262,-500.0,0.00019178,2]
[336546466,1724947839271,-500.0,0.00019178,2]
[336546467,1724947839281,-500.0,0.00019178,2]
[336546468,1724947839294,-399.47932564,0.00019178,2]
[336546469,1724947839304,-573.49086954,0.00019178,2]
[336546470,1724947839313,-500.0,0.00019178,2]
[336546471,1724947839322,-500.0,0.00019178,2]
[336546472,1724947839333,-500.0,0.00019178,2]
[336546473,1724947839343,-304.46514646,0.00019178,2]
[336546474,1724947839352,-500.0,0.00019178,2]
[336546475,1724947839361,-500.0,0.00019178,2]
[336546476,1724947839372,-500.0,0.00019178,2]
[336546477,1724947839383,-218.33,0.00019178,2]
[336546478,1724947839393,-500.0,0.00019178,2]
[336546479,1724947839403,-500.0,0.00019178,2]
[336546480,1724947839413,-233.91287044,0.00019178,2]
[336546481,1724947839423,-500.0,0.00019178,2]
[336546482,1724947839433,-500.0,0.00019178,2]
[336546483,1724947839442,-500.0,0.00019178,2]
[336546484,1724947839452,-500.0,0.00019178,2]
[336546485,1724947839462,-514.14,0.00019178,2]
[336546486,1724947839471,-500.0,0.00019178,2]
[336546487,1724947839481,-500.0,0.00019178,2]
[336546488,1724947839490,-500.0,0.00019178,2]
[336546489,1724947839499,-500.0,0.00019178,2]
[336546490,1724947839508,-500.0,0.00019178,2]
[336546491,1724947839518,-500.0,0.00019178,2]
[336546492,1724947839527,-500.0,0.00019178,2]
[336546493,1724947839542,-500.0,0.00019178,2]
[336546494,1724947839552,-382.47354113,0.00019178,2]
[336546495,1724947839562,-500.0,0.00019178,2]
[336546496,1724947839572,-500.0,0.00019178,2]
[336546497,1724947839583,-500.0,0.00019178,2]
[336546498,1724947839593,-503.66708578,0.00019178,2]
[336546499,1724947839602,-500.0,0.00019178,2]
[336546500,1724947839613,-500.0,0.00019178,2]
[336546501,1724947839622,-500.0,0.00019178,2]
[336546502,1724947839632,-500.0,0.00019178,2]
[336546503,1724947839643,-500.0,0.00019178,2]
[336546504,1724947839652,-500.0,0.00019178,2]
[336546505,1724947839662,-2983.17,0.00019178,2]
[336546506,1724947839671,-500.0,0.00019178,2]
[336546507,1724947839681,-1297.96661085,0.00019178,2]
[336546508,1724947839695,-457.18338915,0.00019178,2]
[336546509,1724947839704,-1168.38,0.00019178,2]
[336546510,1724947839714,-500.0,0.00019178,2]
[336546511,1724947839724,-515.33,0.00019178,2]
[336546512,1724947839733,-9026.1,0.00019178,2]
[336546513,1724947839744,-1136.01,0.00019178,2]
[336546514,1724947839754,-1403.88,0.00019178,2]
[336546515,1724947839764,-5020.6,0.00019178,2]
[336546516,1724947839773,-500.0,0.00019178,2]
[336546517,1724947839783,-500.0,0.00019178,2]
[336546518,1724947839793,-500.0,0.00019178,2]
[336546519,1724947839995,-500.0,0.00019178,2]
[336546520,1724947840006,-500.0,0.00019178,2]
[336546521,1724947840015,-500.0,0.00019178,2]
[336546522,1724947840025,-500.0,0.00019178,2]
[336546523,1724947840035,-1084.48,0.00019178,2]
[336546524,1724947840044,-500.0,0.00019178,2]
[336546525,1724947840053,-500.0,0.00019178,2]
[336546526,1724947840063,-1202.37,0.00019178,2]
[336546528,1724947840073,-1619.52,0.00019178,2]
[336546530,1724947840082,-500.0,0.00019178,2]
[336546532,1724947840092,-500.0,0.00019178,2]
[336546533,1724947840101,-226.06,0.00019178,2]
[336546534,1724947840111,-500.0,0.00019178,2]
[336546535,1724947840120,-500.0,0.00019178,2]
[336546537,1724947840130,-1523.9,0.00019178,2]
[336546538,1724947840141,-1277.01,0.00019178,2]
[336546539,1724947840151,-500.0,0.00019178,2]
[336546540,1724947840161,-500.0,0.00019178,2]
[336546541,1724947840171,-500.0,0.00019178,2]
[336546542,1724947840181,-500.0,0.00019178,2]
[336546543,1724947840192,-526.67,0.00019178,2]
[336546544,1724947840202,-500.0,0.00019178,2]
[336546545,1724947840211,-2013.59,0.00019178,2]
[336546546,1724947840221,-807.51,0.00019178,2]
[336546547,1724947840230,-500.0,0.00019178,2]
[336546548,1724947840239,-1146.32,0.00019178,2]
[336546549,1724947840249,-500.0,0.00019178,2]
[336546550,1724947840259,-519.73796044,0.00019178,2]
[336546551,1724947840269,-587.94,0.00019178,2]
[336546552,1724947840278,-500.0,0.00019178,2]
[336546553,1724947840291,-500.0,0.00019178,2]
[336546554,1724947840300,-500.0,0.00019178,2]
[336546555,1724947840310,-391.89839892,0.00019178,2]
[336546556,1724947840320,-500.0,0.00019178,2]
[336546557,1724947840331,-500.0,0.00019178,2]
[336546558,1724947840342,-501.72870888,0.00019178,2]
[336546559,1724947840351,-500.0,0.00019178,2]
[336546560,1724947840365,-500.0,0.00019178,2]
[336546561,1724947840376,-500.0,0.00019178,2]
[336546562,1724947840386,-500.0,0.00019178,2]
[336546563,1724947840397,-500.0,0.00019178,2]
[336546564,1724947840407,-840.01,0.00019178,2]
[336546565,1724947840417,-321.24180579,0.00019178,2]
[336546566,1724947840426,-500.0,0.00019178,2]
[336546567,1724947840437,-500.0,0.00019178,2]
[336546568,1724947840446,-500.0,0.00019178,2]
[336546569,1724947840456,-500.0,0.00019178,2]
[336546570,1724947840466,-500.0,0.00019178,2]
[336546571,1724947840476,-500.0,0.00019178,2]
[336546572,1724947840486,-500.0,0.00019178,2]
[336546573,1724947840495,-500.0,0.00019178,2]
[336546574,1724947840505,-765.06,0.00019178,2]
[336546575,1724947840515,-500.0,0.00019178,2]
[336546576,1724947840524,-500.0,0.00019178,2]
[336546577,1724947840534,-19662.96,0.00019178,2]
[336546578,1724947840543,-554.38,0.00019178,2]
[336546579,1724947840553,-500.0,0.00019178,2]
[336546580,1724947840563,-500.0,0.00019178,2]
[336546581,1724947840572,-500.0,0.00019178,2]
[336546582,1724947840582,-500.0,0.00019178,2]
[336546583,1724947840591,-503.97,0.00019178,2]
[336546584,1724947840601,-500.0,0.00019178,2]
[336546585,1724947840611,-500.0,0.00019178,2]
[336546586,1724947840621,-500.0,0.00019178,2]
[336546588,1724947840631,-2650.19,0.00019178,2]
[336546589,1724947840642,-500.0,0.00019178,2]
[336546590,1724947840652,-500.0,0.00019178,2]
[336546591,1724947840661,-500.0,0.00019178,2]
[336546592,1724947840671,-2988.93,0.00019178,2]
[336546593,1724947840681,-500.0,0.00019178,2]
[336546594,1724947840690,-500.0,0.00019178,2]
[336546595,1724947840700,-483.40099398,0.00019178,2]
[336546596,1724947840711,-500.0,0.00019178,2]
[336546597,1724947840720,-516.96,0.00019178,2]
[336546598,1724947840731,-500.0,0.00019178,2]
[336546599,1724947840740,-500.0,0.00019178,2]
[336546600,1724947840750,-1070.44,0.00019178,2]
[336546601,1724947840760,-500.0,0.00019178,2]
[336546602,1724947840770,-519.68,0.00019178,2]
[336546603,1724947840780,-500.0,0.00019178,2]
[336546604,1724947840790,-500.0,0.00019178,2]
[336546606,1724947840801,-500.0,0.00019178,2]
[336546607,1724947840812,-500.0,0.00019178,2]
[336546608,1724947840821,-500.0,0.00019178,2]
[336546610,1724947840831,-500.0,0.00019178,2]
[336546611,1724947840850,-500.0,0.00019178,2]
[336546612,1724947840863,-500.0,0.00019178,2]
[336546613,1724947840874,-201.776172,0.00019178,2]
[336546614,1724947840884,-251.0,0.00019178,2]
[336546615,1724947840896,-1222.9963952,0.00019284,2]
[336546616,1724947840907,-600.0,0.00019381,2]
[336546617,1724947840918,-620.82609001,0.00019381,2]
[336546618,1724947840928,-600.0,0.0001939,2]
[336546620,1724947840939,-600.0,0.0001939,2]
[336546621,1724947840948,-600.0,0.000194,2]
[336546622,1724947840960,-6487.32484854,0.00019442,2]
[336546623,1724947840971,-500.0,0.00019452,2]
[336546624,1724947840981,-500.0,0.00019452,2]
[336546625,1724947840992,-368.52721332,0.00019452,2]
[336546626,1724947841003,-500.0,0.00019452,2]
[336546627,1724947841014,-540.36094233,0.00019452,2]
[336546628,1724947841024,-500.0,0.00019452,2]
[336546629,1724947841034,-500.0,0.00019452,2]
[336546630,1724947841045,-1064.94177152,0.00019452,2]
[336546670,1724947843554,-500.0,0.00019178,2]
[336546673,1724947843566,-78.22822848,0.00019452,2]
[336546675,1724947843578,-392.19,0.00019452,2]
[336546677,1724947843589,-289.59588546,0.00019452,2]
[336546679,1724947843598,-500.0,0.00019452,2]
[336546682,1724947843610,-218.24,0.00019452,2]
[336546685,1724947843621,-500.0,0.00019452,2]
[336546687,1724947843633,-503.1577501,0.00019452,2]
[336546689,1724947843644,-620.0,0.00019452,2]
[336546691,1724947843654,-500.0,0.00019452,2]
[336546693,1724947843664,-500.0,0.00019452,2]
[336546696,1724947843676,-500.0,0.00019452,2]
[336546698,1724947843686,-320.87089629,0.00019452,2]
[336546700,1724947843696,-187.74711352,0.00019452,2]
[336546702,1724947843707,-500.0,0.00019452,2]
[336546704,1724947843717,-218.27952424,0.00019452,2]
[336546802,1724947891460,307.11759,0.00014247,2]
[336546824,1724948779650,2999.0,0.000175,2]
[336546825,1724948823103,607.44634955,0.000174,2]
[336546828,1724948838457,-479.80678411,0.00018084,2]
[336546829,1724948847705,2998.92,0.000175,2]
[336546830,1724948901277,155.0,0.000175,2]
[336546831,1724948906037,155.0,0.000175,2]
[336546832,1724948907718,308.167642,0.00014247,2]
[336546906,1724949038743,-1428.97084528,0.00017851,2]
[336546908,1724949038754,-300.0,0.0001795,2]
[336546910,1724949038765,-300.0,0.0001795,2]
[336546912,1724949038776,-174.9797707,0.00017951,2]
[336546915,1724949038787,-10153.3331167,0.00017951,2]
[336546917,1724949038800,-197.43718416,0.00017984,2]
[336546919,1724949038810,-250.0,0.00017986,2]
[336546921,1724949038819,-250.0,0.00018035,2]
[336546923,1724949038829,-3980.27475839,0.00018084,2]
[336546925,1724949038839,-250.0,0.00018084,2]
[336546927,1724949038849,-250.0,0.00018134,2]
[336546929,1724949038859,-250.0,0.00018183,2]
[336546931,1724949038869,-250.0,0.00018232,2]
[336546933,1724949038880,-250.0,0.00018282,2]
[336546935,1724949038889,-505.0991638,0.00018301,2]
[336546937,1724949038899,-250.0,0.00018331,2]
[336546939,1724949038909,-250.0,0.0001838,2]
[336546941,1724949038919,-250.0,0.0001843,2]
[336546943,1724949038928,-250.0,0.00018479,2]
[336546945,1724949038939,-799.32058444,0.000185,2]
[336546948,1724949038951,-1200.67941556,0.000185,2]
[336546950,1724949038965,-250.0,0.00018528,2]
[336546952,1724949038976,-250.0,0.00018578,2]
[336546954,1724949038986,-250.0,0.00018627,2]
[336546956,1724949038996,-250.0,0.00018676,2]
[336546958,1724949039005,-250.0,0.00018726,2]
[336546960,1724949039015,-250.0,0.00018775,2]
[336546963,1724949039026,-250.0,0.00018824,2]
[336546964,1724949039036,-250.0,0.00018873,2]
[336546965,1724949039047,-158.628812,0.00018904,2]
[336546966,1724949039058,-154.521686,0.00018912,2]
[336546967,1724949039068,-250.0,0.00018923,2]
[336546968,1724949039078,-2000.0,0.00019,2]
[336546969,1724949039088,-798.95741062,0.00019078,2]
[336546970,1724949039098,-247.41,0.00019168,3]
[336546971,1724949039107,-206.17,0.00019168,3]
[336546972,1724949039118,-618.54,0.00019168,3]
[336546973,1724949039129,-5514.22612126,0.00019168,2]
[336546974,1724949039139,-450.48479899,0.00019173,2]
[336546975,1724949039148,-168.09411654,0.00019173,2]
[336546976,1724949039158,-397.98283971,0.00019177,2]
[336546977,1724949039168,-500.0,0.00019177,2]
[336546978,1724949039178,-178.87298108,0.00019177,2]
[336546979,1724949039188,-500.0,0.00019177,2]
[336546980,1724949039198,-553.03018895,0.00019177,2]
[336546981,1724949039208,-505.05267071,0.00019177,2]
[336546982,1724949039218,-500.0,0.00019177,2]
[336546983,1724949039227,-500.0,0.00019177,2]
[336546984,1724949039238,-500.0,0.00019177,2]
[336546985,1724949039247,-500.0,0.00019177,2]
[336546986,1724949039258,-500.0,0.00019177,2]
[336546987,1724949039267,-500.0,0.00019177,2]
[336546988,1724949039277,-1051.16,0.00019178,2]
[336546989,1724949039287,-500.0,0.00019178,2]
[336546990,1724949039299,-500.0,0.00019178,2]
[336546991,1724949039308,-500.0,0.00019178,2]
[336546992,1724949039320,-500.0,0.00019178,2]
[336546993,1724949039330,-172.14993318,0.00019178,2]
[336546994,1724949039339,-500.0,0.00019178,2]
[336546995,1724949039349,-497.0,0.00019178,2]
[336546996,1724949039359,-500.0,0.00019178,2]
[336546998,1724949039369,-289.59588546,0.00019178,2]
[336547000,1724949039378,-500.0,0.00019178,2]
[336547002,1724949039388,-501.64740067,0.00019178,2]
[336547004,1724949039397,-500.0,0.00019178,2]
[336547006,1724949039408,-500.0,0.00019178,2]
[336547008,1724949039419,-625.08728253,0.00019178,2]
[336547010,1724949039429,-500.0,0.00019178,2]
[336547012,1724949039439,-500.0,0.00019178,2]
[336547014,1724949039450,-500.0,0.00019178,2]
[336547017,1724949039460,-500.0,0.00019178,2]
[336547019,1724949039470,-500.0,0.00019178,2]
[336547021,1724949039482,-500.0,0.00019178,2]
[336547023,1724949039492,-500.0,0.00019178,2]
[336547025,1724949039502,-503.1577501,0.00019178,2]
[336547027,1724949039512,-620.0,0.00019178,2]
[336547029,1724949039523,-500.0,0.00019178,2]
[336547031,1724949039533,-500.0,0.00019178,2]
[336547033,1724949039543,-320.87089629,0.00019178,2]
[336547036,1724949039556,-187.74711352,0.00019178,2]
[336547038,1724949039566,-500.0,0.00019178,2]
[336547040,1724949039575,-500.0,0.00019178,2]
[336547042,1724949039586,-500.0,0.00019178,2]
[336547044,1724949039598,-500.0,0.00019178,2]
[336547046,1724949039608,-209.81980082,0.00019178,2]
[336547048,1724949039620,-500.0,0.00019178,2]
[336547050,1724949039630,-500.0,0.00019178,2]
[336547053,1724949039647,-500.0,0.00019178,2]
[336547055,1724949039656,-500.0,0.00019178,2]
[336547057,1724949039665,-500.0,0.00019178,2]
[336547059,1724949039676,-500.0,0.00019178,2]
[336547061,1724949039689,-500.0,0.00019178,2]
[336547064,1724949039702,-500.0,0.00019178,2]
[336547066,1724949039712,-596.77,0.00019178,2]
[336547068,1724949039725,-503.65699051,0.00019178,2]
[336547070,1724949039737,-392.19,0.00019178,2]
[336547072,1724949039747,-647.49,0.00019178,2]
[336547074,1724949039757,-500.0,0.00019178,2]
[336547076,1724949039766,-500.0,0.00019178,2]
[336547079,1724949039776,-500.0,0.00019178,2]
[336547081,1724949039787,-155.19720661,0.00019178,2]
[336547083,1724949039798,-500.0,0.00019178,2]
[336547085,1724949039815,-222.53197771,0.00019178,2]
[336547087,1724949039824,-500.0,0.00019178,2]
[336547089,1724949039835,-500.0,0.00019178,2]
[336547091,1724949039845,-500.0,0.00019178,2]
[336547093,1724949039855,-500.0,0.00019178,2]
[336547095,1724949039866,-500.0,0.00019178,2]
[336547097,1724949039876,-500.0,0.00019178,2]
[336547099,1724949039886,-500.0,0.00019178,2]
[336547101,1724949039897,-500.0,0.00019178,2]
[336547103,1724949039909,-500.0,0.00019178,2]
[336547106,1724949039919,-500.0,0.00019178,2]
[336547108,1724949039931,-500.0,0.00019178,2]
[336547110,1724949039941,-500.0,0.00019178,2]
[336547112,1724949039952,-500.0,0.00019178,2]
[336547114,1724949039962,-500.0,0.00019178,2]
[336547116,1724949039971,-500.0,0.00019178,2]
[336547118,1724949039982,-500.0,0.00019178,2]
[336547121,1724949039995,-500.0,0.00019178,2]
[336547123,1724949040005,-500.0,0.00019178,2]
[336547125,1724949040015,-1119.7,0.00019178,2]
[336547127,1724949040025,-500.0,0.00019178,2]
[336547129,1724949040035,-1345.39,0.00019178,2]
[336547131,1724949040048,-500.0,0.00019178,2]
[336547133,1724949040060,-500.0,0.00019178,2]
[336547135,1724949040070,-500.0,0.00019178,2]
[336547137,1724949040081,-500.0,0.00019178,2]
[336547139,1724949040094,-500.0,0.00019178,2]
[336547142,1724949040104,-500.0,0.00019178,2]
[336547144,1724949040115,-500.0,0.00019178,2]
[336547146,1724949040127,-500.0,0.00019178,2]
[336547148,1724949040137,-500.0,0.00019178,2]
[336547150,1724949040148,-500.0,0.00019178,2]
[336547152,1724949040158,-501.59712476,0.00019178,2]
[336547154,1724949040170,-500.0,0.00019178,2]
[336547157,1724949040180,-500.0,0.00019178,2]
[336547159,1724949040191,-2858.87,0.00019178,2]
[336547161,1724949040201,-500.0,0.00019178,2]
[336547163,1724949040212,-500.0,0.00019178,2]
[336547165,1724949040222,-1737.59,0.00019178,2]
[336547167,1724949040232,-8650.02,0.00019178,2]
[336547169,1724949040244,-500.0,0.00019178,2]
[336547171,1724949040254,-500.0,0.00019178,2]
[336547173,1724949040265,-500.0,0.00019178,2]
[336547175,1724949040276,-500.0,0.00019178,2]
[336547177,1724949040285,-500.0,0.00019178,2]
[336547179,1724949040294,-500.0,0.00019178,2]
[336547181,1724949040305,-1088.59,0.00019178,2]
[336547183,1724949040315,-1088.68,0.00019178,2]
[336547185,1724949040324,-500.0,0.00019178,2]
[336547187,1724949040333,-500.0,0.00019178,2]
[336547190,1724949040344,-500.0,0.00019178,2]
[336547192,1724949040355,-500.0,0.00019178,2]
[336547194,1724949040366,-1552.04,0.00019178,2]
[336547196,1724949040377,-4882.3,0.00019178,2]
[336547198,1724949040389,-500.0,0.00019178,2]
[336547201,1724949040401,-500.0,0.00019178,2]
[336547202,1724949040410,-500.0,0.00019178,2]
[336547205,1724949040421,-500.0,0.00019178,2]
[336547207,1724949040431,-500.0,0.00019178,2]
[336547209,1724949040441,-500.0,0.00019178,2]
[336547211,1724949040450,-500.0,0.00019178,2]
[336547213,1724949040460,-501.99014026,0.00019178,2]
[336547214,1724949040469,-500.0,0.00019178,2]
[336547216,1724949040479,-500.0,0.00019178,2]
[336547218,1724949040489,-500.0,0.00019178,2]
[336547220,1724949040500,-500.0,0.00019178,2]
[336547222,1724949040511,-500.0,0.00019178,2]
[336547224,1724949040521,-500.0,0.00019178,2]
[336547226,1724949040531,-500.0,0.00019178,2]
[336547228,1724949040541,-503.87308445,0.00019178,2]
[336547230,1724949040552,-1152.27,0.00019178,2]
[336547232,1724949040562,-501.49380143,0.00019178,2]
[336547234,1724949040571,-500.0,0.00019178,2]
[336547236,1724949040581,-500.0,0.00019178,2]
[336547238,1724949040591,-500.0,0.00019178,2]
[336547240,1724949040600,-500.0,0.00019178,2]
[336547242,1724949040609,-500.0,0.00019178,2]
[336547244,1724949040620,-500.0,0.00019178,2]
[336547247,1724949040630,-500.0,0.00019178,2]
[336547249,1724949040641,-733.18,0.00019178,2]
[336547251,1724949040654,-1150.67,0.00019178,2]
[336547252,1724949040663,-1526.53,0.00019178,2]
[336547254,1724949040672,-500.0,0.00019178,2]
[336547257,1724949040683,-213.83615634,0.00019178,2]
[336547259,1724949040693,-500.0,0.00019178,2]
[336547261,1724949040703,-500.0,0.00019178,2]
[336547263,1724949040712,-500.0,0.00019178,2]
[336547264,1724949040722,-500.0,0.00019178,2]
[336547266,1724949040732,-1279.98,0.00019178,2]
[336547268,1724949040741,-1929.69,0.00019178,2]
[336547270,1724949040751,-2169.49093341,0.00019178,2]
[336547272,1724949040760,-500.0,0.00019178,2]
[336547274,1724949040770,-500.0,0.00019178,2]
[336547276,1724949040780,-500.0,0.00019178,2]
[336547278,1724949040789,-500.0,0.00019178,2]
[336547280,1724949040798,-607.98009222,0.00019178,2]
[336547282,1724949040808,-500.0,0.00019178,2]
[336547284,1724949040818,-500.0,0.00019178,2]
[336547286,1724949040827,-806.61,0.00019178,2]
[336547288,1724949040837,-500.0,0.00019178,2]
[336547290,1724949040846,-500.0,0.00019178,2]
[336547292,1724949040856,-500.0,0.00019178,2]
[336547294,1724949040866,-500.0,0.00019178,2]
[336547296,1724949040875,-500.0,0.00019178,2]
[336547298,1724949040884,-500.0,0.00019178,2]
[336547300,1724949040894,-500.0,0.00019178,2]
[336547317,1724949041044,-500.0,0.00019178,2]
[336547319,1724949041056,-500.0,0.00019178,2]
[336547321,1724949041066,-500.0,0.00019178,2]
[336547323,1724949041075,-500.0,0.00019178,2]
[336547325,1724949041085,-500.0,0.00019178,2]
[336547327,1724949041094,-500.0,0.00019178,2]
[336547329,1724949041104,-500.0,0.00019178,2]
[336547331,1724949041114,-843.2,0.00019178,2]
[336547334,1724949041126,-500.0,0.00019178,2]
[336547336,1724949041136,-500.0,0.00019178,2]
[336547338,1724949041147,-500.0,0.00019178,2]
[336547340,1724949041157,-500.0,0.00019178,2]
[336547342,1724949041167,-158.34940989,0.00019178,2]
[336547344,1724949041176,-500.0,0.00019178,2]
[336547346,1724949041185,-500.0,0.00019178,2]
[336547348,1724949041194,-552.87,0.00019178,2]
[336547349,1724949041203,-500.0,0.00019178,2]
[336547351,1724949041212,-500.0,0.00019178,2]
[336547353,1724949041222,-500.0,0.00019178,2]
[336547355,1724949041231,-500.0,0.00019178,2]
[336547357,1724949041240,-500.0,0.00019178,2]
[336547359,1724949041250,-500.0,0.00019178,2]
[336547361,1724949041259,-500.0,0.00019178,2]
[336547363,1724949041270,-500.0,0.00019178,2]
[336547365,1724949041280,-500.0,0.00019178,2]
[336547367,1724949041290,-500.0,0.00019178,2]
[336547369,1724949041300,-500.0,0.00019178,2]
[336547371,1724949041311,-2864.39,0.00019178,2]
[336547374,1724949041321,-500.0,0.00019178,2]
[336547376,1724949041331,-500.0,0.00019178,2]
[336547378,1724949041342,-500.0,0.00019178,2]
[336547380,1724949041352,-500.0,0.00019178,2]
[336547382,1724949041362,-500.0,0.00019178,2]
[336547384,1724949041371,-18843.67,0.00019178,2]
[336547386,1724949041382,-500.0,0.00019178,2]
[336547388,1724949041392,-500.0,0.00019178,2]
[336547390,1724949041401,-1071.71,0.00019178,2]
[336547392,1724949041412,-2567.35,0.00019178,2]
[336547394,1724949041423,-500.0,0.00019178,2]
[336547396,1724949041432,-500.99634791,0.00019178,2]